bitfinex-derivatives/quotes_ETHF0:USTF0_20250704
["timestamp","ask_amount","ask_price","bid_price","bid_amount"]
[1751672639587,2.0226,2505.3,2505.1,0.79815]
[1751672640185,2.82071,2505.3,2505.1,0.79815]
[1751672641386,2.82071,2505.3,2504.9,0.54782972]
[1751672641592,2.82071,2505.3,2505.1,0.79816]
[1751672641888,2.82071,2505.3,2505.0,0.79819]
[1751672642088,2.82071,2505.3,2505.1,0.79817]
[1751672642287,2.82071,2505.3,2505.0,0.79818]
[1751672642487,2.82071,2505.3,2505.1,0.79816]
[1751672643587,2.0226,2505.3,2505.1,0.79816]
[1751672643788,2.0226,2505.3,2505.2,0.6821]
[1751672644090,2.8207,2505.3,2505.2,0.6821]
[1751672646794,0.79814,2505.2,2504.8,2.60818945]
[1751672646994,0.79814,2505.2,2505.0,0.79819]
[1751672647189,0.79815,2505.2,2505.0,0.79819]
[1751672647385,2.0226,2505.3,2504.9,1.51271]
[1751672647590,0.79817,2505.2,2504.9,1.51271]
[1751672648288,0.79817,2505.1,2504.9,1.51271]
[1751672648689,0.79816,2505.2,2505.0,0.7982]
[1751672649392,0.79817,2505.1,2505.0,0.7982]
[1751672650593,0.79817,2505.1,2504.9,1.51272]
[1751672650594,0.7982,2505.1,2504.9,1.51272]
[1751672651694,2.0226,2505.3,2505.0,0.7982]
[1751672651695,0.79815,2505.2,2505.0,0.7982]
[1751672651894,2.20925,2505.2,2505.1,0.79817]
[1751672652197,36.549,2505.2,2505.1,0.79817]
[1751672652397,11.327,2505.5,2505.4,0.79807]
[1751672652600,49.15749821,2505.5,2505.4,0.79807]
[1751672652895,47.876,2505.5,2505.3,0.79808]
[1751672653194,47.876,2505.5,2505.4,1.48877]
[1751672654296,0.798,2505.7,2505.4,1.48877]
[1751672654490,37.34803,2505.6,2505.3,0.79809]
[1751672654698,0.668,2505.5,2505.3,0.79809]
[1751672654996,0.79797,2505.8,2505.1,1.99543]
[1751672655191,0.6517,2506.0,2505.1,1.99543]
[1751672655192,1.4328,2505.9,2505.2,1.99535]
[1751672655395,37.83233471,2505.8,2505.6,0.79799]
[1751672655598,36.55,2505.8,2505.6,0.79799]
[1751672656296,37.34796,2505.8,2505.5,0.79803]
[1751672656495,37.9828,2505.8,2505.5,0.79803]
[1751672656698,38.78075,2505.8,2505.5,0.79803]
[1751672658799,38.78075,2505.8,2505.5,0.79802]
[1751672659502,36.548,2505.7,2505.6,0.79799]
[1751672660493,1.4659,2506.0,2505.7,0.79798]
[1751672660697,37.83106156,2505.9,2505.7,0.79798]
[1751672660898,37.9755,2505.9,2505.7,0.79798]
[1751672661200,36.548,2505.8,2505.7,0.79798]
[1751672661401,36.548,2505.8,2505.6,0.79799]
[1751672661702,36.548,2505.8,2505.7,0.79798]
[1751672662300,36.548,2505.8,2505.6,0.79799]
[1751672662496,2.22542,2505.9,2505.6,0.79799]
[1751672662702,36.547,2505.7,2505.6,0.79799]
[1751672667900,1.4275,2505.9,2505.8,0.79795]
[1751672668104,39.25239503,2505.9,2505.8,0.79795]
[1751672668303,2.70739503,2505.9,2505.8,0.79795]
[1751672668803,39.25239503,2505.9,2505.8,0.79795]
[1751672669003,2.70739503,2505.9,2505.8,0.79795]
[1751672669303,39.25239503,2505.9,2505.8,0.79795]
[1751672669904,2.70739503,2505.9,2505.8,0.79795]
[1751672670106,39.25239503,2505.9,2505.8,0.79795]
[1751672674506,37.9725,2505.9,2505.8,0.79795]
[1751672675501,11.323,2506.5,2505.7,1.99491]
[1751672675810,3.35246143,2506.4,2506.3,0.79779]
[1751672675999,39.89446143,2506.4,2506.3,0.79779]
[1751672676409,38.6151,2506.4,2506.3,0.79779]
[1751672677510,2.0731,2506.4,2506.3,0.79779]
[1751672677710,38.6131,2506.4,2506.3,0.79779]
[1751672679515,2.0731,2506.4,2506.3,0.79779]
[1751672679712,0.664,2506.7,2506.6,0.79769]
[1751672679910,37.201,2506.7,2506.6,0.79769]
[1751672680414,39.85610176,2506.7,2506.6,0.79769]
[1751672681015,3.31910176,2506.7,2506.6,0.79769]
[1751672681215,39.85610176,2506.7,2506.6,0.79769]
[1751672682316,40.65376176,2506.7,2506.6,0.79769]
[1751672683111,39.85610176,2506.7,2506.6,0.79769]
[1751672683319,40.65376176,2506.7,2506.6,0.79769]
[1751672683617,38.5777,2506.7,2506.6,0.79769]
[1751672684114,38.5747,2506.7,2506.6,0.79769]
[1751672684715,38.5737,2506.7,2506.6,0.79769]
[1751672685512,39.37136,2506.7,2506.6,0.79769]
[1751672685712,38.5737,2506.7,2506.6,0.79769]
[1751672687417,39.37136,2506.7,2506.6,0.79769]
[1751672687916,39.37136,2506.7,2506.5,0.7977]
[1751672688118,1.4026,2506.6,2506.5,0.7977]
[1751672688419,2.20029,2506.6,2506.5,0.7977]
[1751672688620,38.73029,2506.6,2506.5,0.7977]
[1751672692323,37.9326,2506.6,2506.5,0.7977]
[1751672694124,0.79768,2506.7,2506.6,0.79769]
[1751672694324,37.32268,2506.7,2506.5,0.7977]
[1751672694525,0.79769,2506.6,2506.5,0.7977]
[1751672695429,38.73068,2506.7,2506.5,0.7977]
[1751672696433,38.73068,2506.7,2506.6,0.79769]
[1751672697430,2.20568,2506.7,2506.6,0.79769]
[1751672697631,38.72968,2506.7,2506.6,0.79769]
[1751672698630,37.932,2506.7,2506.3,0.6533]
[1751672698832,2.17161,2506.6,2506.5,0.79771]
[1751672699331,0.79779,2506.3,2506.2,0.79779]
[1751672699631,37.31979,2506.3,2506.2,0.79779]
[1751672700631,37.9437,2506.3,2506.2,0.79779]
[1751672701431,38.74149,2506.3,2506.2,0.79779]
[1751672701733,38.74151,2506.3,2506.1,0.79784]
[1751672701929,1.4217,2506.2,2506.1,0.79784]
[1751672703633,0.79771,2506.6,2506.4,0.79774]
[1751672703834,37.79726221,2506.5,2506.4,0.79774]
[1751672704436,38.59498221,2506.5,2506.3,0.79776]
[1751672704637,37.31872,2506.5,2506.4,0.6696]
[1751672704839,38.59594355,2506.5,2506.4,0.6696]
[1751672705132,38.59594355,2506.5,2506.4,1.46735]
[1751672705338,38.59594355,2506.5,2506.4,0.6696]
[1751672706141,2.07494355,2506.5,2506.4,1.46735]
[1751672706342,37.79722355,2506.5,2506.4,1.46735]
[1751672706640,38.59494355,2506.5,2506.4,1.46735]
[1751672706842,39.92134355,2506.5,2506.4,1.46735]
[1751672707542,39.92134355,2506.5,2506.4,0.6696]
[1751672708042,39.92134355,2506.5,2506.4,1.46735]
[1751672708744,39.12362355,2506.5,2506.4,1.46735]
[1751672709543,39.12262355,2506.5,2506.4,1.46735]
[1751672709742,2.60362355,2506.5,2506.4,1.46735]
[1751672710040,39.12162355,2506.5,2506.4,1.46735]
[1751672710242,37.79522355,2506.5,2506.4,1.46735]
[1751672713443,1.27722355,2506.5,2506.4,1.46735]
[1751672713635,37.79422355,2506.5,2506.4,1.46735]
[1751672715244,37.79222355,2506.5,2506.4,1.46735]
[1751672715745,1.27722355,2506.5,2506.4,1.46735]
[1751672715945,37.79222355,2506.5,2506.4,1.46735]
[1751672721653,1.27722355,2506.5,2506.4,1.46735]
[1751672721852,37.78922355,2506.5,2506.4,1.46735]
[1751672722152,37.78822355,2506.5,2506.4,1.46735]
[1751672723153,1.27722355,2506.5,2506.4,1.46735]
[1751672723352,37.78722355,2506.5,2506.4,1.46735]
[1751672725358,1.27722355,2506.5,2506.4,1.46735]
[1751672725558,37.78522355,2506.5,2506.4,1.46735]
[1751672726660,1.27722355,2506.5,2506.4,1.46735]
[1751672726860,37.78522355,2506.5,2506.4,1.46735]
[1751672729160,1.27722355,2506.5,2506.4,1.46735]
[1751672729363,37.78222355,2506.5,2506.4,1.46735]
[1751672736168,1.27722355,2506.5,2506.4,1.46735]
[1751672736368,37.77622355,2506.5,2506.4,1.46735]
[1751672738071,36.499,2506.5,2506.4,1.46735]
[1751672738767,0.7042,2506.8,2506.4,0.6696]
[1751672738972,0.7042,2506.8,2506.7,0.79766]
[1751672739172,39.85711179,2506.8,2506.7,0.79766]
[1751672740073,39.85711179,2506.8,2506.4,1.3454]
[1751672740274,1.28011179,2506.7,2506.6,0.79766]
[1751672740471,2.62581179,2506.7,2506.6,0.79766]
[1751672744276,1.28011179,2506.7,2506.6,0.79766]
[1751672747782,37.1922,2506.8,2506.7,0.79766]
[1751672747977,38.47129094,2506.8,2506.6,0.79767]
[1751672748183,1.4248,2506.7,2506.6,0.79767]
[1751672753084,6.4248,2506.7,2505.7,1.99487]
[1751672753384,0.79784,2506.2,2506.0,0.79786]
[1751672753678,37.1851,2506.1,2506.0,0.79786]
[1751672753885,38.5734,2506.1,2506.0,0.79786]
[1751672755488,0.79789,2506.0,2505.9,0.7979]
[1751672755688,1.3993,2506.0,2505.3,0.6714]
[1751672755988,0.79794,2505.9,2505.7,0.79796]
[1751672756190,38.68025,2505.8,2505.7,0.79796]
[1751672756888,37.8823,2505.8,2505.7,0.79796]
[1751672757990,38.68025,2505.8,2505.6,0.79799]
[1751672758289,1.3993,2505.7,2505.6,0.79799]
[1751672758788,2.1115,2505.7,2505.6,0.79799]
[1751672759390,2.1115,2505.7,2505.5,0.79802]
[1751672760488,2.90948,2505.7,2505.5,0.79802]
[1751672760883,2.90948,2505.7,2505.4,1.45995]
[1751672761087,2.17171,2505.6,2505.4,1.45995]
[1751672761292,1.3737,2505.6,2505.4,1.45995]
[1751672761593,2.17172,2505.6,2505.4,0.6619]
[1751672761798,1.3737,2505.6,2505.4,0.6619]
[1751672761999,1.3737,2505.6,2505.4,1.45995]
[1751672762198,2.17171,2505.6,2505.4,1.45995]
[1751672762399,1.3737,2505.6,2505.5,0.79804]
[1751672762596,1.3737,2505.6,2505.4,1.45995]
[1751672762796,1.3737,2505.6,2505.5,0.79804]
[1751672763395,1.3737,2505.6,2505.4,0.6619]
[1751672763596,1.3737,2505.6,2505.5,0.79804]
[1751672786222,2.65854151,2505.6,2505.5,0.79804]
[1751672789630,1.3737,2505.6,2505.5,0.79804]
[1751672789826,2.66019277,2505.6,2505.5,0.79804]
[1751672791027,1.3737,2505.6,2505.5,0.79804]
[1751672791427,2.66021368,2505.6,2505.5,0.79804]
[1751672793826,1.3737,2505.6,2505.5,0.79804]
[1751672795330,0.79793,2505.9,2505.7,0.79797]
[1751672795529,37.74965622,2505.8,2505.7,0.79797]
[1751672796430,39.08215622,2505.8,2505.7,0.79797]
[1751672797933,44.08215622,2505.8,2504.9,1.99554]
[1751672798135,0.79806,2505.5,2505.2,0.79812]
[1751672798434,38.5656,2505.4,2505.2,0.79812]
[1751672798633,1.4295,2505.3,2505.2,0.79812]
[1751672799332,1.4295,2505.3,2505.0,0.6768]
[1751672799530,1.4295,2505.3,2505.2,0.79814]
[1751672802036,37.1361,2505.4,2505.3,0.7981]
[1751672806038,0.6751,2505.4,2505.3,0.7981]
[1751672806239,36.456,2505.7,2505.3,0.7981]
[1751672806441,36.456,2505.7,2505.6,0.79801]
[1751672806641,37.74194572,2505.7,2505.6,0.79801]
[1751672807141,1.28594572,2505.7,2505.6,0.79801]
[1751672807343,36.456,2506.0,2505.9,0.7979]
[1751672807641,37.74172301,2506.0,2505.9,0.7979]
[1751672807842,39.03592301,2506.0,2505.9,0.7979]
[1751672808342,39.03492301,2506.0,2505.9,0.7979]
[1751672811444,37.73672301,2506.0,2505.9,0.7979]
[1751672813342,1.28572301,2506.0,2505.9,0.7979]
[1751672813543,37.73472301,2506.0,2505.9,0.7979]
[1751672814642,11.298,2506.2,2506.1,0.79785]
[1751672814843,49.03004823,2506.2,2506.1,0.79785]
[1751672815146,1.28404823,2506.2,2506.1,0.79785]
[1751672815347,37.73104823,2506.2,2506.1,0.79785]
[1751672815549,1.28404823,2506.2,2506.1,0.79785]
[1751672815841,2.0025,2506.5,2506.4,0.79775]
[1751672816047,39.73238295,2506.5,2506.4,0.79775]
[1751672816346,3.28638295,2506.5,2506.4,0.79775]
[1751672816544,39.73138295,2506.5,2506.4,0.79775]
[1751672817946,3.28638295,2506.5,2506.4,0.79775]
[1751672818147,37.72888295,2506.5,2506.4,0.79775]
[1751672818949,1.28388295,2506.5,2506.4,0.79775]
[1751672819143,57.473,2506.7,2506.6,0.79769]
[1751672819338,95.19489986,2506.7,2506.6,0.79769]
[1751672820447,93.91,2506.7,2506.6,0.79769]
[1751672821044,2.1018,2506.8,2506.7,0.79766]
[1751672821249,39.81898246,2506.8,2506.7,0.79766]
[1751672821451,3.38298246,2506.8,2506.7,0.79766]
[1751672821648,39.81898246,2506.8,2506.7,0.79766]
[1751672822350,38.5378,2506.8,2506.7,0.79766]
[1751672823351,2.1018,2506.8,2506.7,0.79766]
[1751672823647,11.296,2507.0,2506.9,0.7976]
[1751672823848,49.67865461,2507.0,2506.9,0.7976]
[1751672824346,49.67866999,2507.0,2506.9,0.7976]
[1751672824548,11.9679,2507.0,2506.9,0.7976]
[1751672824747,48.3989,2507.0,2506.9,0.7976]
[1751672825350,49.7842,2507.0,2506.9,0.7976]
[1751672829649,38.4812,2507.0,2506.9,0.7976]
[1751672830352,38.4792,2507.0,2506.9,0.7976]
[1751672835858,39.27676,2507.0,2506.9,0.7976]
[1751672836251,38.4792,2507.0,2506.9,0.7976]
[1751672838459,39.27676,2507.0,2506.9,0.7976]
[1751672839359,38.4792,2507.0,2506.9,0.7976]
[1751672840357,39.27676,2507.0,2506.9,0.7976]
[1751672840955,0.79761,2506.9,2506.7,0.79764]
[1751672841152,1.2946,2506.9,2506.8,0.79763]
[1751672841557,37.7036,2506.9,2506.8,0.79763]
[1751672841859,38.5012,2506.9,2506.8,0.79763]
[1751672842060,38.5012,2506.9,2506.4,2.66255]
[1751672842061,38.5012,2506.9,2506.7,0.79764]
[1751672842269,1.2946,2506.8,2506.7,0.79764]
[1751672848264,2.57638687,2506.8,2506.7,0.79764]
[1751672852768,1.28178687,2506.8,2506.7,0.79764]
[1751672853468,37.68278687,2506.8,2506.7,0.79764]
[1751672856770,1.28178687,2506.8,2506.7,0.79764]
[1751672856971,37.68078687,2506.8,2506.7,0.79764]
[1751672857472,1.28178687,2506.8,2506.7,0.79764]
[1751672878088,1.28178687,2506.8,2506.7,1.21637136]
[1751672880089,1.28178687,2506.8,2506.7,1.91507136]
[1751672882895,1.28178687,2506.8,2506.7,1.49634]
[1751672885090,1.28178687,2506.8,2506.7,1.91884259]
[1751672885294,1.28178687,2506.8,2506.7,1.49634]
[1751672885697,1.3732,2507.1,2507.0,0.79756]
[1751672885997,2.65499076,2507.1,2507.0,0.79756]
[1751672892800,1.28179076,2507.1,2507.0,0.79756]
[1751672900106,13.62698265,2507.6,2507.2,1.99372]
[1751672900307,11.9833,2507.6,2507.5,0.7974]
[1751672900808,11.27,2507.6,2507.5,0.7974]
[1751672901709,37.7248,2507.8,2507.7,0.79734]
[1751672902810,37.7228,2507.8,2507.7,0.79734]
[1751672903719,1.3638,2507.8,2507.7,0.79734]
[1751672903914,37.7218,2507.8,2507.7,0.79734]
[1751672905616,1.3638,2507.8,2507.7,0.79734]
[1751672905816,37.7198,2507.8,2507.7,0.79734]
[1751672906618,37.7178,2507.8,2507.7,0.79734]
[1751672908318,1.3638,2507.8,2507.7,0.79734]
[1751672908514,37.0653,2507.8,2507.7,0.79734]
[1751672909411,0.7133,2507.8,2507.7,0.79734]
[1751672911620,93.796,2507.9,2507.8,0.79731]
[1751672912120,95.0658336,2507.9,2507.8,0.79731]
[1751672914122,95.0598336,2507.9,2507.8,0.79731]
[1751672914313,95.0578336,2507.9,2507.8,0.79731]
[1751672914918,57.445,2507.9,2507.8,0.79731]
[1751672915223,95.05736665,2507.9,2507.8,0.79731]
[1751672915619,93.788,2507.9,2507.8,0.79731]
[1751672917321,2.076,2508.1,2507.6,0.6494]
[1751672917520,2.076,2508.1,2508.0,0.79725]
[1751672917722,39.68542147,2508.1,2508.0,0.79725]
[1751672918023,39.68442147,2508.1,2508.0,0.79725]
[1751672919127,3.34542147,2508.1,2508.0,0.79725]
[1751672919327,38.414,2508.1,2508.0,0.79725]
[1751672919528,38.413,2508.1,2508.0,0.79725]
[1751672920325,39.68187302,2508.1,2508.0,0.79725]
[1751672920729,3.34487302,2508.1,2508.0,0.79725]
[1751672921028,38.412,2508.1,2508.0,0.79725]
[1751672923523,0.79725,2508.0,2507.6,0.79737]
[1751672923831,0.79732,2507.8,2507.6,0.79737]
[1751672924027,37.69,2507.7,2507.6,0.79737]
[1751672924227,38.398,2507.7,2507.6,0.79737]
[1751672930230,38.398,2507.7,2507.4,0.6839]
[1751672930430,37.04,2507.7,2507.6,0.79737]
[1751672931430,38.31282743,2507.7,2507.6,0.79737]
[1751672932837,39.11016743,2507.7,2507.6,0.79737]
[1751672933635,38.31282743,2507.7,2507.6,0.79737]
[1751672933937,1.27282743,2507.7,2507.6,0.79737]
[1751672936741,36.324,2507.9,2507.8,0.79731]
[1751672937035,37.0288,2508.0,2507.9,0.79728]
[1751672937337,37.82605,2508.0,2507.9,0.79728]
[1751672938840,0.79728,2507.9,2507.8,0.79729]
[1751672942841,37.82606,2508.0,2507.9,0.79728]
[1751672943041,37.0288,2508.0,2507.9,0.79728]
[1751672943237,37.82605,2508.0,2507.9,0.79728]
[1751672945040,0.79728,2507.9,2507.8,0.79729]
[1751672945940,2.21438,2507.9,2507.8,0.79729]
[1751672947945,2.21438,2507.9,2507.8,0.79731]
[1751672950449,3.48664398,2507.9,2507.8,0.79731]
[1751672950648,2.68936398,2507.9,2507.8,0.79731]
[1751672951048,3.48664398,2507.9,2507.8,0.79731]
[1751672953654,2.68936398,2507.9,2507.8,0.79731]
[1751672953854,1.27226398,2507.9,2507.8,0.79731]
[1751672954455,37.58326398,2507.9,2507.8,0.79731]
[1751672955054,1.27226398,2507.9,2507.8,0.79731]
[1751672955254,37.58226398,2507.9,2507.8,0.79731]
[1751672955450,1.27226398,2507.9,2507.8,0.79731]
[1751672955756,37.58126398,2507.9,2507.8,0.79731]
[1751672960560,1.27226398,2507.9,2507.8,0.79731]
[1751672974677,1.9965,2508.1,2508.0,0.79725]
[1751672974877,3.26637766,2508.1,2508.0,0.79725]
[1751672984380,4.06358766,2508.1,2508.0,0.79725]
[1751672984582,3.26637766,2508.1,2508.0,0.79725]
[1751672989685,4.06358766,2508.1,2508.0,0.79725]
[1751672989985,3.26637766,2508.1,2508.0,0.79725]
[1751672992482,4.06358766,2508.1,2508.0,0.79725]
[1751672992883,3.26637766,2508.1,2508.0,0.79725]
[1751672997291,4.06358766,2508.1,2508.0,0.79725]
[1751672997590,3.26637766,2508.1,2508.0,0.79725]
[1751672998991,4.06358766,2508.1,2508.0,0.79725]
[1751673000494,3.26637766,2508.1,2508.0,0.79725]
[1751673000794,4.06358766,2508.1,2508.0,0.79725]
[1751673001097,3.26637766,2508.1,2508.0,0.79725]
[1751673004196,1.26987766,2508.1,2508.0,0.79725]
[1751673009091,4.53934264,2508.8,2508.2,1.99292]
[1751673009297,1.2712056,2508.7,2508.6,0.79703]
[1751673011201,1.44673,2509.0,2508.4,2.68285]
[1751673011400,1.44673,2509.0,2508.8,0.79698]
[1751673011599,1.44673,2509.0,2508.9,0.79696]
[1751673011901,1.44673,2509.0,2508.8,0.79697]
[1751673013098,0.79696,2508.9,2508.8,0.79697]
[1751673013696,1.44675,2509.0,2508.8,0.79697]
[1751673013899,0.79696,2508.9,2508.8,0.79697]
[1751673016202,1.44675,2509.0,2508.8,0.79697]
[1751673016402,1.44675,2509.0,2508.9,0.79696]
[1751673017205,0.79697,2508.9,2508.8,0.79697]
[1751673017807,1.44675,2509.0,2508.9,0.79696]
[1751673019207,0.6498,2509.0,2508.9,0.79696]
[1751673020407,1.44673,2509.0,2508.9,0.79696]
[1751673025313,0.79697,2508.9,2508.8,0.79697]
[1751673025912,1.44675,2509.0,2508.9,0.79696]
[1751673026713,2.74525,2509.0,2508.9,0.79696]
[1751673029011,0.79699,2508.9,2508.8,0.79698]
[1751673030417,2.15959,2508.9,2508.8,0.79698]
[1751673030712,1.3626,2508.9,2508.3,0.6825]
[1751673030918,0.7971,2508.5,2508.4,0.7971]
[1751673033624,1.3256,2508.6,2508.5,0.79709]
[1751673033923,2.58065506,2508.6,2508.5,0.79709]
[1751673034520,3.37770506,2508.6,2508.5,0.79709]
[1751673035719,2.58065506,2508.6,2508.5,0.79709]
[1751673036422,1.25505506,2508.6,2508.5,0.79709]
[1751673039424,0.6524,2509.0,2508.9,0.79696]
[1751673039625,13.59753264,2509.3,2508.7,1.99253]
[1751673039825,1.25911228,2509.2,2509.1,0.79687]
[1751673043529,57.42,2509.7,2509.5,0.79674]
[1751673043728,1.2587811,2509.6,2509.5,0.79677]
[1751673044129,2.6858811,2509.6,2509.5,0.79677]
[1751673045333,2.6858811,2509.6,2508.9,3.29781]
[1751673045534,1.2587811,2509.5,2509.0,1.3054]
[1751673045736,2.1079,2509.5,2509.4,0.79679]
[1751673046035,3.36464905,2509.5,2509.4,0.79679]
[1751673046833,2.1079,2509.5,2509.4,0.79679]
[1751673047230,36.226,2509.6,2509.5,0.79677]
[1751673047431,2.0533157,2509.6,2509.5,0.79677]
[1751673048434,37.02172,2509.7,2509.6,0.79674]
[1751673048634,39.69474715,2509.7,2509.6,0.79674]
[1751673049035,39.69474715,2509.7,2509.5,0.79675]
[1751673049228,0.79674,2509.6,2509.5,0.79675]
[1751673051034,2.20674,2509.6,2509.5,0.79675]
[1751673054730,0.79678,2509.5,2509.4,0.79678]
[1751673055135,2.20676,2509.6,2509.5,0.79677]
[1751673065140,0.79678,2509.5,2509.4,0.79678]
[1751673065339,0.79676,2509.6,2509.5,0.79676]
[1751673065641,2.82746,2509.6,2509.5,0.79676]
[1751673066641,0.79679,2509.5,2509.2,1.3477]
[1751673066937,2.12789,2509.5,2509.4,0.7968]
[1751673069341,3.38329125,2509.5,2509.4,0.7968]
[1751673070043,0.79682,2509.4,2509.3,0.79681]
[1751673070242,2.18972,2509.4,2509.3,0.79681]
[1751673072239,1.3929,2509.4,2509.3,0.79681]
[1751673072446,0.6996,2509.6,2509.5,0.79677]
[1751673072749,1.95564863,2509.6,2509.5,0.79677]
[1751673072940,1.95564863,2509.6,2509.4,0.79678]
[1751673073136,0.79682,2509.4,2509.3,0.79682]
[1751673073344,2.0533624,2509.4,2509.3,0.79682]
[1751673073944,1.2565424,2509.4,2509.3,0.79682]
[1751673075147,2.0533424,2509.4,2509.3,0.79682]
[1751673075347,1.2565424,2509.4,2509.3,0.79682]
[1751673076548,2.0533424,2509.4,2509.3,0.79683]
[1751673076752,3.3701424,2509.4,2509.3,0.79683]
[1751673077048,2.5733424,2509.4,2509.3,0.79683]
[1751673077751,0.79683,2509.3,2509.2,0.6507]
[1751673077949,0.79688,2509.2,2508.7,2.69523]
[1751673078251,2.79626,2509.2,2509.1,0.7969]
[1751673078451,4.05310441,2509.2,2509.1,0.7969]
[1751673079246,3.25624441,2509.2,2508.7,3.36783]
[1751673079451,0.7969,2509.1,2509.0,0.79691]
[1751673079849,1.9994,2509.2,2508.7,1.3753]
[1751673080050,2.05348695,2509.1,2508.9,0.79694]
[1751673080251,0.79693,2509.0,2508.9,0.79694]
[1751673082253,1.4104,2509.1,2508.7,1.3753]
[1751673082453,0.79694,2509.0,2508.7,1.3753]
[1751673082655,0.79694,2509.0,2508.9,0.79696]
[1751673084251,2.20732,2509.1,2508.7,1.3753]
[1751673084453,2.20732,2509.1,2508.9,0.79693]
[1751673084951,0.79693,2509.0,2508.9,0.79693]
[1751673085459,2.20732,2509.1,2509.0,0.79693]
[1751673085656,2.66616091,2509.1,2508.7,1.3753]
[1751673085857,3.26912244,2509.0,2508.5,0.7036]
[1751673086150,3.26912244,2509.0,2508.1,2.64531]
[1751673086151,1.99249,2508.8,2508.1,0.6523]
[1751673086348,4.56504844,2508.7,2508.1,2.1531]
[1751673086552,0.79718,2508.2,2508.1,1.3559]
[1751673086758,0.79722,2508.1,2507.9,0.79727]
[1751673086958,2.11392,2508.1,2507.9,0.79727]
[1751673087253,1.3167,2508.1,2508.0,0.79725]
[1751673089158,2.11391,2508.1,2507.9,0.79726]
[1751673089458,2.11391,2508.1,2508.0,0.79725]
[1751673089459,1.3167,2508.1,2508.0,0.79725]
[1751673089669,1.4794,2508.2,2508.0,0.79725]
[1751673090464,0.6822,2508.2,2508.1,0.79721]
[1751673091563,0.6822,2508.2,2507.7,1.3528]
[1751673091964,1.47938,2508.2,2508.0,0.79721]
[1751673092366,0.6822,2508.2,2508.1,0.79721]
[1751673101682,12.6684,2508.5,2508.4,0.79712]
[1751673101870,0.79712,2508.4,2508.3,0.79713]
[1751673102971,12.6684,2508.5,2508.4,0.79712]
[1751673103675,0.6937,2508.9,2508.4,0.79712]
[1751673103873,0.79709,2508.5,2508.4,0.79712]
[1751673105582,0.6937,2508.9,2508.1,0.6991]
[1751673105883,0.79702,2508.7,2508.6,0.79703]
[1751673106779,0.79701,2508.8,2508.6,0.79703]
[1751673106980,2.13261,2508.8,2508.6,0.79703]
[1751673107180,0.79702,2508.7,2508.6,0.79703]
[1751673108279,2.04983295,2508.7,2508.6,0.79703]
[1751673108480,0.79706,2508.6,2508.5,0.79708]
[1751673108785,0.79704,2508.7,2508.5,0.79707]
[1751673109483,0.79705,2508.6,2508.5,0.79707]
[1751673109982,0.79709,2508.5,2508.4,0.7971]
[1751673110591,0.79708,2508.6,2508.5,0.79709]
[1751673111090,3.32816,2508.8,2508.2,0.653]
[1751673111285,0.79715,2508.3,2508.2,0.653]
[1751673111492,0.79718,2508.2,2508.1,1.49629]
[1751673112182,0.79718,2508.2,2508.1,0.6991]
[1751673112390,0.79725,2508.0,2507.9,0.7152]
[1751673114392,2.05159006,2508.0,2507.9,1.51248]
[1751673114595,1.25434006,2508.0,2507.9,1.51248]
[1751673121097,48.89037,2508.3,2508.1,0.79719]
[1751673121296,1.25621441,2508.2,2508.1,0.79719]
[1751673123694,47.418,2508.4,2508.3,0.79715]
[1751673123899,1.25549147,2508.4,2508.3,0.79715]
[1751673124503,36.2,2508.5,2508.4,0.79712]
[1751673124703,37.45552808,2508.5,2508.4,0.79712]
[1751673124903,1.25552808,2508.5,2508.4,0.79712]
[1751673127705,2.05261808,2508.5,2508.4,0.79712]
[1751673127902,1.25552808,2508.5,2508.4,0.79712]
[1751673128098,3.40031808,2508.5,2508.4,0.79712]
[1751673128305,4.08591808,2508.5,2508.4,0.79712]
[1751673131505,3.28882808,2508.5,2508.4,0.79712]
[1751673138019,3.28882808,2508.5,2508.4,0.81705033]
[1751673138418,37.44852808,2508.5,2508.4,0.81705033]
[1751673138613,1.25552808,2508.5,2508.4,0.81705033]
[1751673138818,11.219,2508.7,2508.6,0.79705]
[1751673139020,37.44644882,2508.7,2508.6,0.01993033]
[1751673139319,37.44644882,2508.7,2508.6,0.81698033]
[1751673141117,1.25344882,2508.7,2508.6,0.81698033]
[1751673141312,37.44544882,2508.7,2508.6,0.81698033]
[1751673141717,1.25344882,2508.7,2508.6,0.81698033]
[1751673142217,2.16255,2509.3,2509.1,0.79687]
[1751673142514,37.44299014,2509.2,2508.7,1.99253]
[1751673142717,1.25299014,2509.1,2508.7,1.99253]
[1751673142924,36.19,2509.2,2509.1,0.7969]
[1751673143125,1.2526831,2509.2,2509.1,0.81683033]
[1751673143525,37.4426831,2509.2,2509.1,0.81683033]
[1751673144121,38.2395431,2509.2,2509.1,0.01993033]
[1751673144322,39.6692431,2509.2,2509.1,0.81683033]
[1751673145020,39.6692431,2509.2,2509.1,0.01993033]
[1751673152330,39.6622431,2509.2,2509.1,0.01993033]
[1751673152626,39.6622431,2509.2,2509.1,0.81683033]
[1751673153428,3.4792431,2509.2,2509.1,0.81683033]
[1751673153632,39.6622431,2509.2,2509.1,0.81683033]
[1751673154630,39.6622431,2509.2,2509.1,0.01993033]
[1751673164436,40.3310431,2509.2,2509.1,0.01993033]
[1751673165137,0.79702,2508.7,2508.6,0.6878]
[1751673165338,36.97302,2508.7,2508.6,1.48485]
[1751673165933,36.97302,2508.7,2508.6,0.6878]
[1751673166138,36.97302,2508.7,2508.6,1.48485]
[1751673166945,38.22518031,2508.7,2508.6,1.48485]
[1751673168944,38.22518031,2508.7,2508.6,0.6878]
[1751673170747,0.79705,2508.6,2508.5,0.7042]
[1751673170945,2.80945,2508.6,2508.5,0.7042]